[Event "Polish University-ch Teams 2024"]
[Site "Lublin"]
[Date "2024.02.24"]
[Round "3.6"]
[White "Wojtas, Julia"]
[Black "Kubicka, Anna"]
[Result "0-1"]
[ECO "B92"]
[WhiteElo "1346"]
[BlackElo "2278"]
[Annotator "TA"]
[PlyCount "76"]
[EventDate "2024.02.22"]
[EventType "team-tourn"]
[EventCountry "POL"]
[SourceTitle "playchess.com"]
[Source "ChessBase"]
[SourceQuality "1"]
[TimeControl "900+5"]

{[%evp 16,75,7,0,4,0,0,0,6,0,10,-18,-28,-18,-18,-6,-23,-62,-56,-70,-73,-53,-35,-47,-52,-82,-28,-23,-22,-31,0,-40,-35,-82,-72,-74,-33,-48,-58,-70,-70,-67,-56,-52,-59,-87,-90,-111,-99,-200,-147,-140,-112,-442,-442,-829,-812,-29997,-29998,-29998,-29999,-29999]} 1. e4 {[%emt 0:00:03]} c5 {[%emt 0:00:01]} 2. Nf3 {[%emt 0:00:02]} d6 {[%emt 0:00:01]} 3. d4 {[%emt 0:00:02]} cxd4 {[%emt 0:00:01]} 4. Nxd4 {[%emt 0:00:02]} Nf6 {[%emt 0:00:02]} 5. Nc3 {[%emt 0:00:03]} a6 {[%emt 0:00:01]} 6. Be2 {[%emt 0:00:08]} e5 {[%emt 0:00:01]} 7. Nf3 {[%emt 0:00:08]} Be7 {[%emt 0:00:02]} 8. O-O {[%emt 0:00:07]} O-O {[%emt 0:00:03]} 9. a4 {[%emt 0:00:06]} h6 {[%emt 0:00:12]} 10. h3 {[%emt 0:00:05]} Be6 {[%emt 0:00:01]} 11. Be3 {[%emt 0:00:24]} Nbd7 {[%emt 0:00:04] The position is equal.} 12. Nd2 {[%emt 0:00:36]} Rc8 {[%emt 0:01:06]} 13. Kh1 {[%emt 0:00:40]} d5 {[%emt 0:00:26]} 14. exd5 {[%emt 0:00:19]} Nxd5 {[%emt 0:00:02]} 15. Nxd5 {[%emt 0:00:15]} Bxd5 {[%emt 0:00:02]} 16. f4 {[%emt 0:00:56]} exf4 {[%emt 0:02:47]} 17. Bxf4 {[%emt 0:00:29]} Bf6 {[%emt 0:00:14]} 18. c3 {[%emt 0:01:14]} Ne5 {[%emt 0:00:04]} 19. Qc2 {[%emt 0:00:49]} Re8 {[%emt 0:01:35]} 20. Nf3 {[%emt 0:01:27]} Ng6 {[%emt 0:00:34]} (20... Qd7 $17) 21. Bg3 $11 {[%emt 0:00:55]} Be4 {[%emt 0:00:53]} 22. Qb3 {[%emt 0:00:47]} Bd5 {[%emt 0:00:39]} 23. Qc2 {[%emt 0:00:08]} Qb6 {[%emt 0:00:41]} 24. a5 {[%emt 0:01:24]} (24. Bd3 $15) 24... Qc6 $36 {[%emt 0:03:25][%mdl 2048] Black is really pushing. Black is much more active.} 25. Bd3 {[%emt 0:00:40]} Ne5 {[%emt 0:00:14]} 26. Nxe5 {[%emt 0:03:14]} Bxe5 {[%emt 0:00:03]} 27. Bxe5 {[%emt 0:00:13]} Rxe5 {[%emt 0:00:01]} 28. Rae1 {[%emt 0:00:14]} Rce8 {[%emt 0:00:19]} 29. Rxe5 {[%emt 0:00:03]} Rxe5 {[%emt 0:00:02]} 30. c4 {[%emt 0:00:14] [#]} Be6 {[%emt 0:01:32][%csl LRa5,LRh3]} 31. Rf3 {[%emt 0:00:51]} Re1+ {[%emt 0:00:28]} 32. Kh2 {[%emt 0:00:42]} (32. Rf1 $17 Re5 33. Rd1) 32... Qd6+ {[%emt 0:00:05]} 33. g3 {[%emt 0:00:02]} Qd4 {[%emt 0:01:37]} 34. Rf2 $2 {[%emt 0:00:33][%mdl 8192] Now White is beyond hope.} (34. Bf1 $17 {is tougher.}) 34... Re3 $19 {[%emt 0:00:15]} 35. Bf5 {[%emt 0:00:00] [#]} (35. Bf1 $142 Qe5 36. Kh1 Qxg3 (36... Qxa5 $2 37. g4 $19) 37. Re2 Qf3+ (37... Bxh3 $2 38. Rxe3 Qxe3 39. Qd3 $19) 38. Kg1 Bxh3 39. Rxe3 Qxe3+ 40. Qf2 Qxf2+ 41. Kxf2 Bxf1 42. Kxf1) 35... Qe5 $1 {[%emt 0:00:07]} ({And not} 35... Qxc4 36. Qd2 Bxf5 (36... Qc5 37. Qd8+ Qf8 38. Bh7+ Kxh7 39. Qxf8 $18) 37. Qxe3 $16) ({Weaker is} 35... Bxc4 36. Rf4 $11) 36. Bxe6 {[%emt 0:00:00]} Qxg3+ {[%emt 0:00:02] Black mates.} 37. Kh1 {[%emt 0:00:00]} Re1+ {[%emt 0:00:02]} 38. Rf1 {[%emt 0:00:01]} Rxf1# {[%emt 0:00:02] Weighted Error Value: White=0.71/Black=0.11 (very precise) .  Loses game:     	White=1     	---        Mistake:       	White=3     	Black=1      Inaccurate:     	White=5     	Black=1      OK:         	White=10    	Black=6      Best:        	White=1     	Black=1      Strong:       	---       	Black=1} 0-1

[Event "Polish University-ch Teams 2024"]
[Site "Lublin"]
[Date "2024.02.24"]
[Round "3.7"]
[White "Snihur, Piotr"]
[Black "Baum, Jonasz"]
[Result "0-1"]
[ECO "D02"]
[WhiteElo "2278"]
[BlackElo "2400"]
[Annotator "RC"]
[PlyCount "102"]
[EventDate "2024.02.22"]
[EventType "team-tourn"]
[EventCountry "POL"]
[SourceTitle "playchess.com"]
[Source "ChessBase"]
[SourceQuality "1"]
[TimeControl "900+5"]

1. Nf3 {[%emt 0:15:10]} d5 {[%emt 0:00:01]} 2. g3 {[%emt 0:00:00]} Nd7 {[%emt 0:00:01]} 3. d4 {[%emt 0:00:00]} Nb6 {[%emt 0:00:01]} 4. Bg2 {[%emt 0:00:00]} Bf5 {[%emt 0:00:02]} 5. O-O {[%emt 0:00:00]} e6 {[%emt 0:00:02]} 6. b3 {[%emt 0:00:00]} h6 {[%emt 0:00:08]} 7. Bb2 {[%emt 0:00:00]} Nf6 {[%emt 0:00:04]} 8. Nbd2 {[%emt 0:00:00]} Be7 {[%emt 0:00:03]} 9. Rc1 {[%emt 0:00:00]} O-O {[%emt 0:00:04]} 10. c4 {[%emt 0:00:00]} c6 {[%emt 0:00:02]} 11. Re1 {[%emt 0:00:00]} Bh7 {[%emt 0:00:03]} 12. Ne5 {[%emt 0:00:00]} Qc7 {[%emt 0:02:09]} 13. e4 {[%emt 0:00:00]} Rad8 {[%emt 0:00:14]} 14. Qe2 {[%emt 0:00:00]} Rfe8 {[%emt 0:02:33]} 15. c5 {[%emt 0:00:00]} Nc8 {[%emt 0:01:40]} 16. Nd3 {[%emt 0:00:00]} dxe4 {[%emt 0:00:18]} 17. Nxe4 {[%emt 0:00:00]} Nxe4 {[%emt 0:00:08]} 18. Bxe4 {[%emt 0:00:00]} Bxe4 {[%emt 0:00:01]} 19. Qxe4 {[%emt 0:00:00]} Bf6 {[%emt 0:00:01]} 20. Rcd1 {[%emt 0:00:00]} Ne7 {[%emt 0:00:54]} 21. Ne5 {[%emt 0:00:00]} Qa5 {[%emt 0:01:58]} 22. a3 {[%emt 0:00:00]} Qb5 {[%emt 0:00:24]} 23. Qc2 {[%emt 0:00:00]} Nf5 {[%emt 0:02:09]} 24. a4 {[%emt 0:00:15]} Qa5 {[%emt 0:00:02]} 25. Nc4 {[%emt 0:00:04]} Qc7 {[%emt 0:00:01]} 26. Re4 {[%emt 0:00:25]} Rd7 {[%emt 0:00:27]} 27. Bc3 {[%emt 0:00:29]} Qd8 {[%emt 0:00:41]} 28. Qb2 {[%emt 0:00:50]} e5 {[%emt 0:00:33]} 29. Rde1 {[%emt 0:00:02]} Rd5 {[%emt 0:01:12]} 30. dxe5 {[%emt 0:00:02]} Be7 {[%emt 0:00:01]} 31. e6 {[%emt 0:00:13]} f6 {[%emt 0:00:04]} 32. b4 {[%emt 0:00:01]} Rd3 {[%emt 0:00:23]} 33. Rf4 {[%emt 0:00:06]} Qd5 {[%emt 0:00:09]} 34. Rfe4 {[%emt 0:00:07]} Rd8 {[%emt 0:00:14]} 35. Qc2 {[%emt 0:00:08]} h5 {[%emt 0:00:21]} 36. Bb2 {[%emt 0:00:06]} h4 {[%emt 0:00:07]} 37. g4 {[%emt 0:00:01]} Nh6 {[%emt 0:00:04]} 38. Nd6 {[%emt 0:00:04]} h3 {[%emt 0:00:10]} 39. Qc4 {[%emt 0:00:06]} Qxc4 {[%emt 0:00:19]} 40. Nxc4 {[%emt 0:00:01]} Rb3 {[%emt 0:00:10]} 41. Ba3 {[%emt 0:00:13]} Rdd3 {[%emt 0:00:08]} 42. R4e3 {[%emt 0:00:06]} Nxg4 {[%emt 0:00:04]} 43. Rxd3 {[%emt 0:00:03]} Rxd3 {[%emt 0:00:00]} 44. Nd6 {[%emt 0:00:05]} Rxa3 {[%emt 0:00:06]} 45. Nf5 {[%emt 0:00:04]} Kf8 {[%emt 0:00:00]} 46. Rd1 {[%emt 0:00:01]} g6 {[%emt 0:00:13]} 47. Ng3 {[%emt 0:00:12]} Ne5 {[%emt 0:00:04]} 48. f4 {[%emt 0:00:04]} Nf3+ {[%emt 0:00:04]} 49. Kf2 {[%emt 0:00:00]} Nxh2 {[%emt 0:00:02]} 50. Rd7 {[%emt 0:00:02]} Ng4+ {[%emt 0:00:03]} 51. Ke2 {[%emt 0:00:03]} Rxg3 {[%emt 0:00:01]} 0-1

[Event "Polish University-ch Teams 2024"]
[Site "Lublin"]
[Date "2024.02.24"]
[Round "3.8"]
[White "Szustakowski, Antoni"]
[Black "Sliwicka, Alicja"]
[Result "1-0"]
[ECO "E94"]
[WhiteElo "2354"]
[BlackElo "2309"]
[Annotator "TA"]
[PlyCount "105"]
[EventDate "2024.02.22"]
[EventType "team-tourn"]
[EventCountry "POL"]
[SourceTitle "playchess.com"]
[Source "ChessBase"]
[SourceQuality "1"]
[TimeControl "900+5"]

{[%evp 15,105,41,45,39,40,39,67,59,72,76,70,18,29,15,131,113,112,75,91,91,202,152,199,189,219,183,321,335,320,267,324,279,355,334,552,558,531,403,587,605,582,504,477,445,791,778,1164,112,98,103,66,102,643,627,706,285,1267,212,737,290,308,309,271,287,256,85,93,0,0,0,310,307,352,256,261,0,320,241,243,230,29981,29982,29995,29993,29993,29971,29992,29993,29997,29998,29998,29999]} 1. d4 {[%emt 0:00:01]} Nf6 {[%emt 0:00:01]} 2. c4 {[%emt 0:00:01]} d6 {[%emt 0:00:01]} 3. Nc3 {[%emt 0:00:07]} Nbd7 {[%emt 0:00:02]} 4. Nf3 {[%emt 0:00:07]} e5 {[%emt 0:00:01]} 5. e4 {[%emt 0:00:05]} g6 {[%emt 0:00:17]} 6. Be2 {[%emt 0:00:02]} Bg7 {[%emt 0:00:02]} 7. O-O {[%emt 0:00:03]} O-O {[%emt 0:00:04]} 8. Be3 {[%emt 0:00:04]} Ng4 {[%emt 0:00:07]} 9. Bg5 {[%emt 0:00:01]} Bf6 {[%emt 0:00:26]} 10. Bc1 {[%emt 0:00:31]} (10. dxe5 $5 Ngxe5 11. Bh6 $16) 10... exd4 {[%emt 0:00:42]} 11. Nxd4 {[%emt 0:00:02] White is slightly better.} Nge5 {[%emt 0:00:02]} 12. Be3 {[%emt 0:00:29]} Nc6 {[%emt 0:00:36]} 13. Nxc6 {[%emt 0:00:30]} (13. f4 $14) 13... bxc6 $11 {[%emt 0:00:01]} 14. Qd2 {[%emt 0:00:02]} Ne5 {[%emt 0:00:16]} (14... Bb7 $11) 15. f4 $1 $16 {[%emt 0:01:24]} Nd7 {[%emt 0:00:48]} 16. Bf3 {[%emt 0:00:43][%cal Oe4e5]} a5 {[%emt 0:00:17]} 17. Rad1 $36 {[%emt 0:00:16][%cal Oe4e5][%mdl 2048] Keeping Black busy.} Nb8 {[%emt 0:01:31]} (17... Ra6 $16) 18. c5 {[%emt 0:02:01]} Ba6 {[%emt 0:02:21]} (18... Be7 $16 19. Be2 Nd7) 19. Rfe1 $18 {[%emt 0:00:10][%cal Rc5d6]} Be7 {[%emt 0:00:02]} 20. Qf2 {[%emt 0:01:18] cxd6 would now be deadly.} Nd7 {[%emt 0:00:25] [#]} (20... f6 {was necessary.} 21. Ne2 Bc4) 21. e5 $1 {[%emt 0:01:42][%cal Be4e5,Be5e6,Be6f7][%mdl 544]} d5 {[%emt 0:00:02] [#]} 22. Nxd5 $1 {[%emt 0:00:33][%mdl 512]} cxd5 {[%emt 0:00:05]} 23. Bxd5 {[%emt 0:00:01]} Bb5 {[%emt 0:01:46] Wards off Bc6} 24. e6 {[%emt 0:01:19]} Nf6 $2 {[%emt 0:01:39]} (24... fxe6 25. Bxe6+ Kh8 26. Bxd7 Bxd7) 25. exf7+ {[%emt 0:00:02]} (25. Bxa8 Qxa8 26. h3 fxe6 $19) 25... Kg7 {[%emt 0:00:01]} 26. Bb3 {[%emt 0:00:54]} Qc8 {[%emt 0:00:40]} (26... Ng4 $142) 27. Bd4 {[%emt 0:00:02]} a4 {[%emt 0:01:33] Black is weak on the dark squares} 28. Be6 {[%emt 0:02:35]} Qa6 {[%emt 0:00:41]} 29. g4 {[%emt 0:00:37][%cal Bg2g4,Bg4g5][%mdl 32] Strongly threatening g5.} Rxf7 {[%emt 0:00:13]} (29... Rad8 $142 30. g5 Rxd4 31. Qxd4 (31. gxf6+ Bxf6 32. Rxd4 h5 $18) 31... Be2) 30. g5 {[%emt 0:00:30]} Rff8 {[%emt 0:00:33] [#]} 31. Bc8 $2 {[%emt 0:00:05]} Qxc8 $16 {[%emt 0:00:12]} 32. Rxe7+ {[%emt 0:00:01]} Kg8 {[%emt 0:00:13] Hoping for ...Qg4+.} 33. Qf3 {[%emt 0:00:51] White is much more active.} (33. Bxf6 $2 Qg4+ 34. Qg3 Qxd1+ $19) (33. Qg2 {feels hotter.} Bc6 34. Qe2 Bb5 35. Qxb5 Qg4+ 36. Kf2) 33... Ra6 {[%emt 0:01:59][%mdl 8192]} 34. Bxf6 $18 {[%emt 0:00:15]} Rf7 {[%emt 0:00:07]} 35. Rde1 {[%emt 0:00:05]} (35. f5 $142 Rxe7 36. Bxe7 Qxf5 37. Rd8+ Kg7 38. Qc3+ Kf7 39. Rf8+ Kxe7 40. Rxf5 gxf5 41. Qb4) 35... Qf8 {[%emt 0:00:07]} (35... Rxe7 36. Rxe7 Qf5) 36. Rxf7 $2 {[%emt 0:00:07]} (36. Qb7) 36... Qxf7 $2 {[%emt 0:00:02]} (36... Qxc5+ 37. Qf2 Qxf2+ 38. Kxf2 Kxf7 39. Re7+ Kf8 40. Rxc7 (40. Rxh7 a3 $18) 40... Rc6 41. Rxh7 Re6) 37. Re7 $2 {[%emt 0:00:01]} (37. Qb7 {Intending Qb8+ and mate.} Re6 38. Rxe6 Qxe6 39. Qxb5 Qg4+ 40. Kf2 Qxf4+ 41. Ke2 Qe4+ 42. Kd2) 37... Qc4 {[%emt 0:00:03]} 38. Rg7+ {[%emt 0:00:25]} (38. Rxc7 Re6 39. Rc8+ Re8 40. Rxe8+ Bxe8 $18) 38... Kf8 {[%emt 0:00:01]} 39. Rxc7 {[%emt 0:00:04]} ({Stronger than} 39. Rxh7 Qc1+ 40. Kf2 Qf1+ 41. Kg3 Qg1+ 42. Qg2 Qe3+ 43. Qf3 Qg1+ 44. Qg2 Qe3+ 45. Qf3 Qg1+ $11) 39... Re6 {[%emt 0:00:07] aiming for ...Qc1+.} 40. Bg7+ $2 {[%emt 0:00:12]} (40. Rxh7 $2 {too greedy.} Qxc5+ 41. Kg2 Bc6 42. Rh8+ Kf7 43. Rh7+ Ke8 44. Rh8+ Kd7 45. Rh7+ Kd6 46. Be5+ Rxe5 47. fxe5+ Qxe5 $19) (40. Be5 $18 {is more deadly.}) 40... Kg8 $16 {[%emt 0:00:04] [#] And now ...Qc1+ would win.} 41. Be5 {[%emt 0:00:01]} ({Better is} 41. Rc8+ $1 $16 Re8 42. Rxe8+ Bxe8 43. Bc3) 41... Qc1+ $11 {[%emt 0:00:11]} 42. Kg2 {[%emt 0:00:01][%cal Bg1g2,Bg2g3,Bg3h4][%mdl 32] Rc8+ would kill now.} Qc2+ $2 {[%emt 0:00:06][%mdl 8192]} (42... Rxe5 $1 $11 43. fxe5 Qxg5+ 44. Qg3 Qd2+ 45. Qf2 Qg5+ 46. Kh1 Qc1+ 47. Qg1 Qc4 48. Rc8+ Kg7 49. Rc7+ Kg8 50. Rc8+ Kg7) 43. Kg3 $18 {[%emt 0:00:02]} Qd2 {[%emt 0:00:07][%cal Oe6e5]} 44. Rc8+ {[%emt 0:00:08]} Kf7 {[%emt 0:00:01]} 45. Rc7+ {[%emt 0:00:06][%cal Bc8c7,Bc7g7,Bg7h7,Bh7h8][%mdl 32]} Kg8 $1 {[%emt 0:00:02][%cal Oe6e5,Bf7g8,Bg8f8,Bf8e8][%mdl 32]} 46. Qf2 {[%emt 0:00:07]} Qd3+ {[%emt 0:00:03] [#]} 47. Kh4 $1 {[%emt 0:00:01][%cal Oc5c6] White threatens c6! and mate.} ({Don't do} 47. Qf3 Qd2 $18) 47... Re8 $2 {[%emt 0:00:05]} (47... Qe4 $18) 48. c6 {[%emt 0:00:04] White mates.} Qd5 {[%emt 0:00:06]} 49. Rg7+ {[%emt 0:00:05]} Kf8 {[%emt 0:00:01]} 50. Rxh7 {[%emt 0:00:00]} Bxc6 {[%emt 0:00:05]} 51. Qa7 {[%emt 0:00:07][%csl Ge5,Gh7][%cal Ra7g7]} Rxe5 {[%emt 0:00:13]} 52. Qg7+ {[%emt 0:00:03]} Ke8 {[%emt 0:00:02]} 53. Rh8+ {[%emt 0:00:01] Weighted Error Value: White=0.68/Black=0.64.  Loses game:     	---       	Black=2      Missed win:     	White=1     	---        Mistake:       	White=2     	Black=9      Inaccurate:     	White=1     	Black=2      OK:         	White=12    	Black=10     Best:        	White=2     	Black=4      Strong:       	White=2     	Black=1      Brilliant:      	White=1     	---} 1-0

[Event "Polish University-ch Teams 2024"]
[Site "Lublin"]
[Date "2024.02.24"]
[Round "3.9"]
[White "Brzezinski, Mateusz"]
[Black "Koziorowicz, Michal"]
[Result "1/2-1/2"]
[ECO "A21"]
[WhiteElo "2176"]
[BlackElo "2324"]
[Annotator "RC"]
[PlyCount "141"]
[EventDate "2024.02.22"]
[EventType "team-tourn"]
[EventCountry "POL"]
[SourceTitle "playchess.com"]
[Source "ChessBase"]
[SourceQuality "1"]
[TimeControl "900+5"]

1. c4 {[%emt 0:00:03]} f5 {[%emt 0:00:20]} 2. Nc3 {[%emt 0:00:04]} Nf6 {[%emt 0:00:03]} 3. g3 {[%emt 0:00:02]} e5 {[%emt 0:00:03]} 4. Bg2 {[%emt 0:00:02]} g6 {[%emt 0:00:04]} 5. d3 {[%emt 0:00:01]} Bg7 {[%emt 0:00:02]} 6. Nf3 {[%emt 0:00:02]} d6 {[%emt 0:00:02]} 7. O-O {[%emt 0:00:02]} O-O {[%emt 0:00:03]} 8. Rb1 {[%emt 0:00:01]} a5 {[%emt 0:00:31]} 9. a3 {[%emt 0:00:02]} h6 {[%emt 0:01:50]} 10. b4 {[%emt 0:00:28]} axb4 {[%emt 0:00:33]} 11. axb4 {[%emt 0:00:01]} Be6 {[%emt 0:00:20]} 12. Nd2 {[%emt 0:01:42]} c6 {[%emt 0:00:33]} 13. b5 {[%emt 0:00:06]} d5 {[%emt 0:00:18]} 14. bxc6 {[%emt 0:05:36]} bxc6 {[%emt 0:00:05]} 15. cxd5 {[%emt 0:00:49]} cxd5 {[%emt 0:00:06]} 16. d4 {[%emt 0:00:02]} Ne4 {[%emt 0:01:04]} 17. Ndxe4 {[%emt 0:00:21]} fxe4 {[%emt 0:00:56]} 18. dxe5 {[%emt 0:00:44]} Bxe5 {[%emt 0:00:35]} 19. Nb5 {[%emt 0:00:08]} g5 {[%emt 0:03:08]} 20. Bb2 {[%emt 0:00:13]} Nc6 {[%emt 0:01:25]} 21. Bxe5 {[%emt 0:00:54]} Nxe5 {[%emt 0:00:02]} 22. Nd4 {[%emt 0:00:01]} Qd7 {[%emt 0:02:41]} 23. Rb6 {[%emt 0:00:54]} Bh3 {[%emt 0:00:25]} 24. Qb3 {[%emt 0:00:19]} Bxg2 {[%emt 0:00:13]} 25. Kxg2 {[%emt 0:00:01]} Nc4 {[%emt 0:00:21]} 26. Rb7 {[%emt 0:00:54]} Qd6 {[%emt 0:00:09]} 27. Qb5 {[%emt 0:00:55]} Rad8 {[%emt 0:00:29]} 28. Nc6 {[%emt 0:01:04]} Rd7 {[%emt 0:00:43]} 29. Rxd7 {[%emt 0:00:55]} Qxd7 {[%emt 0:00:01]} 30. Rd1 {[%emt 0:00:20]} Rf5 {[%emt 0:00:23]} 31. Rxd5 {[%emt 0:00:29]} Rxd5 {[%emt 0:00:02]} 32. Qxd5+ {[%emt 0:00:01]} Qxd5 {[%emt 0:00:01]} 33. Ne7+ {[%emt 0:00:01]} Kf7 {[%emt 0:00:01]} 34. Nxd5 {[%emt 0:00:01]} Ke6 {[%emt 0:00:02]} 35. Nc3 {[%emt 0:00:07]} Ke5 {[%emt 0:00:01]} 36. e3 {[%emt 0:00:23]} Nd2 {[%emt 0:00:06]} 37. Ne2 {[%emt 0:00:12]} Nf3 {[%emt 0:00:04]} 38. h3 {[%emt 0:00:02]} Kd5 {[%emt 0:00:14]} 39. g4 {[%emt 0:00:03]} Ke5 {[%emt 0:00:03]} 40. Ng3 {[%emt 0:00:05]} Nd2 {[%emt 0:00:05]} 41. Nf1 {[%emt 0:00:08]} Nf3 {[%emt 0:00:02]} 42. Ng3 {[%emt 0:00:03]} Nd2 {[%emt 0:00:01]} 43. Ne2 {[%emt 0:00:02]} Nf3 {[%emt 0:00:05]} 44. Kg3 {[%emt 0:00:00]} Kd5 {[%emt 0:00:08]} 45. Nc3+ {[%emt 0:00:05]} Ke5 {[%emt 0:00:01]} 46. Nb5 {[%emt 0:00:01]} Kd5 {[%emt 0:00:06]} 47. Nc7+ {[%emt 0:00:04]} Ke5 {[%emt 0:00:01]} 48. Nb5 {[%emt 0:00:18]} Kd5 {[%emt 0:00:01]} 49. Na3 {[%emt 0:00:01]} Kc5 {[%emt 0:00:04]} 50. Nc2 {[%emt 0:00:04]} Kc4 {[%emt 0:00:06]} 51. Kg2 {[%emt 0:00:02]} Kc3 {[%emt 0:00:06]} 52. Na3 {[%emt 0:00:00]} Kb4 {[%emt 0:00:01]} 53. Nc2+ {[%emt 0:00:01]} Kc3 {[%emt 0:00:00]} 54. Na3 {[%emt 0:00:01]} Kb4 {[%emt 0:00:03]} 55. Nc2+ {[%emt 0:00:02]} Kb3 {[%emt 0:00:07]} 56. Nd4+ {[%emt 0:00:01]} Nxd4 {[%emt 0:00:01]} 57. exd4 {[%emt 0:00:01]} Kc4 {[%emt 0:00:01]} 58. Kf1 {[%emt 0:00:11]} Kxd4 {[%emt 0:00:02]} 59. Ke2 {[%emt 0:00:01]} Kd5 {[%emt 0:00:05]} 60. Ke3 {[%emt 0:00:08]} Ke5 {[%emt 0:00:01]} 61. f3 {[%emt 0:00:01]} exf3 {[%emt 0:00:01]} 62. Kxf3 {[%emt 0:00:01]} Kd4 {[%emt 0:00:01]} 63. Kg3 {[%emt 0:00:00]} Ke3 {[%emt 0:00:00]} 64. h4 {[%emt 0:00:01]} Ke2 {[%emt 0:00:01]} 65. hxg5 {[%emt 0:00:02]} hxg5 {[%emt 0:00:01]} 66. Kg2 {[%emt 0:00:01]} Ke3 {[%emt 0:00:01]} 67. Kg3 {[%emt 0:00:01]} Ke4 {[%emt 0:00:00]} 68. Kh3 {[%emt 0:00:05]} Kf3 {[%emt 0:00:02]} 69. Kh2 {[%emt 0:00:01]} Kf4 {[%emt 0:00:01]} 70. Kg1 {[%emt 0:00:03]} Kxg4 {[%emt 0:00:06]} 71. Kg2 {[%emt 0:00:01]} 1/2-1/2